fUST/lending_fUST_20240215
["ID","MTS","AMOUNT","RATE_DAILY","PERIOD"]
[314108041,1707984646530,-500.0,0.00035616,14]
[314108042,1707984646539,-500.0,0.00035616,7]
[314108043,1707984646549,-403.79557639,0.00035616,14]
[314108044,1707984646558,-500.0,0.00035616,14]
[314108045,1707984646567,-500.0,0.00035753,14]
[314108046,1707984646577,-500.0,0.00035753,7]
[314108047,1707984646586,-500.0,0.00035753,14]
[314108048,1707984646595,-315790.63412861,0.000358,30]
[314108055,1707984912736,799.83607792,0.0003,2]
[314108093,1707985835368,-521.57034808,0.0003,7]
[314108115,1707985838553,-73.35165192,0.0003,7]
[314108116,1707985838562,-945.60848586,0.00032678,5]
[314108117,1707985838573,-4634.32449458,0.00032688,5]
[314108118,1707985838582,-164.0,0.00033,2]
[314108120,1707985838591,-849.8698677,0.00033218,2]
[314108121,1707985838601,-274.09807742,0.000337,2]
[314108122,1707985838611,-3075.28031069,0.00033992,2]
[314108123,1707985838622,-1097.09,0.00033992,2]
[314108124,1707985838634,-20727.62968931,0.00033992,2]
[314108125,1707985838644,-1401.0491538,0.00034258,2]
[314108126,1707985838653,-392.0,0.00034452,2]
[314108127,1707985838663,-155.0,0.00034516,2]
[314108128,1707985838672,-4020.83839239,0.00035,4]
[314108129,1707985838681,-151.5941942,0.00035,2]
[314108130,1707985838690,-5000.0,0.00035191,7]
[314108131,1707985838699,-200.230317,0.00035342,2]
[314108132,1707985838709,-312.8842493,0.00035342,2]
[314108133,1707985838721,-308.766801,0.00035342,2]
[314108134,1707985838731,-793.95868717,0.000355,15]
[314108135,1707985838740,-161.74103775,0.000355,2]
[314108136,1707985838749,-4025.84,0.00035505,3]
[314108137,1707985838758,-6956.65,0.00035506,3]
[314108138,1707985838767,-5797.21,0.00035506,3]
[314108139,1707985838777,-4831.01,0.00035506,3]
[314108140,1707985838787,-435.88,0.00035515,2]
[314108141,1707985838797,-435.88,0.00035515,2]
[314108142,1707985838806,-435.88,0.00035515,2]
[314108143,1707985838818,-435.88,0.00035515,2]
[314108144,1707985838827,-435.88,0.00035515,2]
[314108145,1707985838838,-435.88,0.00035515,2]
[314108146,1707985838847,-435.88,0.00035515,2]
[314108147,1707985838857,-435.88,0.00035515,2]
[314108148,1707985838866,-435.88,0.00035515,2]
[314108149,1707985838876,-317.79663581,0.00035515,15]
[314108150,1707985838888,-238.04107446,0.00035515,15]
[314108151,1707985838898,-500.0,0.00035515,15]
[314108152,1707985838908,-500.0,0.00035515,15]
[314108153,1707985838918,-500.0,0.00035515,15]
[314108154,1707985838927,-303.55311812,0.00035515,15]
[314108155,1707985838937,-500.0,0.00035515,15]
[314108156,1707985838947,-500.0,0.00035515,15]
[314108157,1707985838956,-243.65114652,0.00035515,18]
[314108158,1707985838965,-250.0,0.00035515,2]
[314108159,1707985838975,-151665.93638602,0.00035516,2]
[314108160,1707985838984,-161.74103775,0.00035577,2]
[314108161,1707985838993,-326.9429495,0.000356,2]
[314108162,1707985839002,-500.0,0.00035616,7]
[314108163,1707985839011,-500.0,0.00035616,14]
[314108164,1707985839021,-500.0,0.00035616,7]
[314108165,1707985839030,-500.0,0.00035616,14]
[314108166,1707985839040,-500.0,0.00035616,14]
[314108167,1707985839049,-500.0,0.00035616,14]
[314108168,1707985839058,-500.0,0.00035616,14]
[314108169,1707985839070,-500.0,0.00035616,2]
[314108170,1707985839079,-513.66558092,0.00035616,14]
[314108171,1707985839089,-500.0,0.00035616,14]
[314108172,1707985839098,-343.63079016,0.00035616,14]
[314108173,1707985839107,-500.0,0.00035616,14]
[314108174,1707985839117,-500.0,0.00035616,14]
[314108175,1707985839127,-500.0,0.00035616,14]
[314108176,1707985839136,-500.0,0.00035616,14]
[314108177,1707985839146,-500.0,0.00035616,14]
[314108178,1707985839155,-500.0,0.00035616,14]
[314108179,1707985839164,-500.0,0.00035616,14]
[314108180,1707985839173,-500.0,0.00035616,14]
[314108181,1707985839182,-500.0,0.00035616,14]
[314108182,1707985839191,-790.71,0.00035616,14]
[314108183,1707985839201,-507.8299765,0.00035616,14]
[314108184,1707985839210,-500.0,0.00035616,14]
[314108185,1707985839219,-500.0,0.00035616,14]
[314108186,1707985839228,-500.0,0.00035616,14]
[314108187,1707985839237,-500.0,0.00035616,14]
[314108188,1707985839247,-1842.8,0.00035616,7]
[314108189,1707985839256,-500.0,0.00035616,14]
[314108190,1707985839265,-500.0,0.00035616,14]
[314108191,1707985839275,-285.50953037,0.00035616,14]
[314108192,1707985839284,-510.46755575,0.00035616,14]
[314108193,1707985839294,-500.0,0.00035616,14]
[314108194,1707985839303,-500.0,0.00035616,14]
[314108195,1707985839312,-517.39206153,0.00035616,14]
[314108196,1707985839323,-500.0,0.00035616,14]
[314108197,1707985839332,-500.0,0.00035616,14]
[314108198,1707985839342,-500.0,0.00035616,14]
[314108199,1707985839351,-195.99445327,0.00035616,14]
[314108200,1707985839361,-500.0,0.00035616,14]
[314108201,1707985839370,-500.0,0.00035616,2]
[314108202,1707985839379,-500.0,0.00035616,14]
[314108203,1707985839389,-500.0,0.00035616,14]
[314108204,1707985839399,-500.0,0.00035616,14]
[314108205,1707985839409,-500.0,0.00035616,14]
[314108206,1707985839418,-500.0,0.00035616,14]
[314108207,1707985839427,-184.23353177,0.00035616,14]
[314108208,1707985839436,-514.93351127,0.00035616,14]
[314108209,1707985839446,-500.0,0.00035616,14]
[314108210,1707985839455,-504.24519245,0.00035616,14]
[314108211,1707985839465,-500.0,0.00035616,14]
[314108212,1707985839475,-512.21825011,0.00035616,14]
[314108213,1707985839484,-500.0,0.00035616,14]
[314108214,1707985839493,-516.94149683,0.00035616,14]
[314108215,1707985839502,-500.0,0.00035616,14]
[314108216,1707985839512,-617.85,0.00035616,14]
[314108217,1707985839521,-315.01598404,0.00035616,14]
[314108218,1707985839530,-500.0,0.00035616,14]
[314108219,1707985839540,-528.03076737,0.00035616,14]
[314108220,1707985839551,-500.0,0.00035616,14]
[314108221,1707985839560,-503.4400308,0.00035616,14]
[314108222,1707985839571,-500.0,0.00035616,2]
[314108223,1707985839580,-500.0,0.00035616,14]
[314108224,1707985839590,-500.0,0.00035616,2]
[314108225,1707985839600,-500.0,0.00035616,14]
[314108226,1707985839609,-541.69581236,0.00035616,14]
[314108227,1707985839620,-975.55,0.00035616,14]
[314108228,1707985839629,-510.79586648,0.00035616,14]
[314108229,1707985839638,-582.46,0.00035616,14]
[314108230,1707985839647,-544.11636985,0.00035616,14]
[314108231,1707985839656,-220.0,0.00035616,2]
[314108232,1707985839665,-500.0,0.00035616,14]
[314108233,1707985839675,-500.0,0.00035616,14]
[314108234,1707985839684,-500.0,0.00035616,14]
[314108235,1707985839693,-500.0,0.00035616,14]
[314108236,1707985839704,-501.74485484,0.00035616,14]
[314108237,1707985839714,-564.36544628,0.00035616,14]
[314108238,1707985839802,-500.0,0.00035616,14]
[314108239,1707985839812,-574.18027158,0.00035616,14]
[314108240,1707985839822,-535.29,0.00035616,14]
[314108241,1707985839831,-500.0,0.00035616,7]
[314108242,1707985839840,-500.0,0.00035616,14]
[314108243,1707985839849,-557.04962915,0.00035616,14]
[314108244,1707985839859,-500.0,0.00035616,2]
[314108245,1707985839868,-506.21858276,0.00035616,14]
[314108246,1707985839877,-500.0,0.00035616,14]
[314108247,1707985839892,-503.20204968,0.00035616,14]
[314108248,1707985839902,-500.0,0.00035616,14]
[314108249,1707985839911,-506.57653874,0.00035616,14]
[314108250,1707985839920,-401.84311323,0.00035616,14]
[314108251,1707985839929,-500.0,0.00035616,14]
[314108252,1707985839939,-500.0,0.00035616,14]
[314108253,1707985839948,-500.0,0.00035616,14]
[314108254,1707985839957,-500.0,0.00035616,14]
[314108255,1707985839966,-348.26586637,0.00035616,14]
[314108256,1707985839975,-266.15669203,0.00035616,14]
[314108257,1707985839984,-696.51,0.00035616,14]
[314108258,1707985839994,-500.0,0.00035616,14]
[314108259,1707985840004,-500.0,0.00035616,14]
[314108260,1707985840013,-500.0,0.00035616,14]
[314108261,1707985840022,-198.13534654,0.00035616,14]
[314108262,1707985840031,-500.0,0.00035616,7]
[314108263,1707985840040,-500.0,0.00035616,14]
[314108264,1707985840049,-178.61972058,0.00035616,14]
[314108265,1707985840058,-500.0,0.00035616,14]
[314108266,1707985840069,-495.88183261,0.00035616,14]
[314108267,1707985840079,-500.0,0.00035616,14]
[314108268,1707985840088,-500.0,0.00035616,14]
[314108269,1707985840097,-500.0,0.00035616,14]
[314108270,1707985840107,-500.0,0.00035616,14]
[314108271,1707985840116,-500.0,0.00035616,14]
[314108272,1707985840125,-489.82980321,0.00035616,14]
[314108273,1707985840134,-212.18676146,0.00035616,14]
[314108274,1707985840143,-583.6952767,0.00035616,14]
[314108275,1707985840153,-500.0,0.00035616,14]
[314108276,1707985840162,-500.0,0.00035616,14]
[314108277,1707985840171,-2124.2,0.00035616,14]
[314108278,1707985840180,-500.0,0.00035616,14]
[314108279,1707985840189,-578.55450017,0.00035616,14]
[314108280,1707985840197,-500.0,0.00035616,14]
[314108281,1707985840207,-500.0,0.00035616,14]
[314108282,1707985840216,-500.0,0.00035616,14]
[314108283,1707985840226,-887.33,0.00035616,14]
[314108284,1707985840234,-500.0,0.00035616,14]
[314108285,1707985840243,-1000.0,0.00035616,2]
[314108286,1707985840252,-1319.1,0.00035616,14]
[314108287,1707985840261,-500.0,0.00035616,14]
[314108288,1707985840270,-500.0,0.00035616,14]
[314108289,1707985840279,-500.0,0.00035616,14]
[314108290,1707985840288,-2004.12,0.00035616,14]
[314108291,1707985840297,-500.0,0.00035616,14]
[314108292,1707985840306,-500.0,0.00035616,14]
[314108293,1707985840315,-14185.1,0.00035616,14]
[314108294,1707985840324,-520.94030356,0.00035616,14]
[314108295,1707985840333,-500.0,0.00035616,2]
[314108296,1707985840342,-500.0,0.00035616,14]
[314108297,1707985840351,-537.0742866,0.00035616,14]
[314108298,1707985840360,-4720.06,0.00035616,14]
[314108299,1707985840369,-543.30693965,0.00035616,14]
[314108300,1707985840379,-375.44487099,0.00035616,14]
[314108301,1707985840388,-500.0,0.00035616,14]
[314108302,1707985840397,-1376.62,0.00035616,14]
[314108303,1707985840406,-500.0,0.00035616,14]
[314108304,1707985840415,-442.04517344,0.00035616,14]
[314108305,1707985840424,-542.81677724,0.00035616,14]
[314108306,1707985840433,-500.0,0.00035616,14]
[314108307,1707985840442,-14187.68,0.00035616,14]
[314108308,1707985840451,-1610.73,0.00035616,14]
[314108309,1707985840460,-500.0,0.00035616,14]
[314108310,1707985840469,-500.0,0.00035616,14]
[314108311,1707985840479,-500.0,0.00035616,14]
[314108312,1707985840488,-500.0,0.00035616,14]
[314108313,1707985840497,-1315.27,0.00035616,14]
[314108314,1707985840507,-500.0,0.00035616,14]
[314108315,1707985840515,-500.0,0.00035616,14]
[314108316,1707985840524,-500.0,0.00035616,14]
[314108317,1707985840533,-500.0,0.00035616,14]
[314108318,1707985840542,-500.0,0.00035616,14]
[314108319,1707985840551,-536.17297969,0.00035616,14]
[314108321,1707985840561,-500.0,0.00035616,14]
[314108322,1707985840570,-241.4578223,0.00035616,14]
[314108323,1707985840579,-771.35,0.00035616,14]
[314108324,1707985840588,-500.0,0.00035616,14]
[314108325,1707985840598,-500.0,0.00035616,14]
[314108326,1707985840607,-500.0,0.00035616,14]
[314108327,1707985840617,-7834.33,0.00035616,14]
[314108328,1707985840626,-500.0,0.00035616,14]
[314108329,1707985840634,-500.0,0.00035616,14]
[314108330,1707985840643,-500.0,0.00035616,14]
[314108331,1707985840653,-500.0,0.00035616,14]
[314108332,1707985840662,-500.0,0.00035616,14]
[314108333,1707985840671,-500.0,0.00035616,14]
[314108334,1707985840680,-500.0,0.00035616,14]
[314108335,1707985840689,-500.0,0.00035616,14]
[314108336,1707985840698,-7094.35,0.00035616,14]
[314108337,1707985840713,-156.84959731,0.00035616,14]
[314108339,1707985840722,-505.73434112,0.00035616,14]
[314108340,1707985840731,-500.0,0.00035616,14]
[314108342,1707985840740,-500.0,0.00035616,14]
[314108343,1707985840750,-3023.51,0.00035616,14]
[314108344,1707985840760,-500.0,0.00035616,14]
[314108345,1707985840769,-2177.45,0.00035616,14]
[314108346,1707985840778,-311.37712662,0.00035616,14]
[314108347,1707985840789,-2453.96,0.00035616,14]
[314108348,1707985840799,-13831.67,0.00035616,14]
[314108349,1707985840808,-500.0,0.00035616,14]
[314108350,1707985840818,-994.01,0.00035616,14]
[314108351,1707985840826,-25385.97,0.00035616,14]
[314108352,1707985840836,-500.0,0.00035616,14]
[314108353,1707985840845,-1172.51,0.00035616,14]
[314108354,1707985840855,-500.0,0.00035616,14]
[314108355,1707985840864,-500.0,0.00035616,14]
[314108356,1707985840873,-2021.91,0.00035616,14]
[314108357,1707985840882,-506.91722832,0.00035616,14]
[314108359,1707985840892,-500.0,0.00035616,14]
[314108361,1707985840901,-648.82,0.00035616,14]
[314108363,1707985840910,-500.0,0.00035616,14]
[314108365,1707985840920,-500.0,0.00035616,14]
[314108367,1707985840928,-1819.69,0.00035616,14]
[314108369,1707985840938,-500.0,0.00035616,14]
[314108371,1707985840948,-754.13,0.00035616,14]
[314108372,1707985840957,-500.0,0.00035616,14]
[314108373,1707985840966,-500.0,0.00035616,14]
[314108374,1707985840975,-500.0,0.00035616,14]
[314108375,1707985840985,-500.0,0.00035616,14]
[314108376,1707985840994,-500.0,0.00035616,14]
[314108377,1707985841003,-500.0,0.00035616,14]
[314108378,1707985841012,-500.0,0.00035616,14]
[314108379,1707985841021,-500.0,0.00035616,14]
[314108380,1707985841030,-500.0,0.00035616,14]
[314108381,1707985841040,-500.0,0.00035616,14]
[314108382,1707985841049,-500.0,0.00035616,14]
[314108383,1707985841058,-500.0,0.00035616,14]
[314108384,1707985841067,-2292.91,0.00035616,14]
[314108385,1707985841076,-14196.73,0.00035616,14]
[314108386,1707985841085,-500.0,0.00035616,14]
[314108387,1707985841095,-500.0,0.00035616,14]
[314108388,1707985841104,-1169.93,0.00035616,14]
[314108389,1707985841113,-654.88,0.00035616,14]
[314108390,1707985841122,-161.74103775,0.00035653,2]
[314108391,1707985841131,-2685.07989918,0.00035653,2]
[314108392,1707985841141,-211.839866,0.00035703,2]
[314108393,1707985841150,-192.627183,0.00035703,2]
[314108394,1707985841160,-152.034734,0.00035703,2]
[314108395,1707985841169,-266.533122,0.00035703,2]
[314108396,1707985841179,-266.533122,0.00035703,2]
[314108397,1707985841187,-166.986018,0.00035703,2]
[314108398,1707985841197,-153.053435,0.00035703,2]
[314108399,1707985841206,-500.0,0.00035752,14]
[314108400,1707985841215,-500.0,0.00035753,7]
[314108401,1707985841224,-500.0,0.00035753,14]
[314108402,1707985841233,-500.0,0.00035753,7]
[314108403,1707985841242,-500.0,0.00035753,14]
[314108404,1707985841251,-500.0,0.00035753,14]
[314108405,1707985841260,-500.0,0.00035753,14]
[314108406,1707985841269,-500.0,0.00035753,14]
[314108407,1707985841278,-500.0,0.00035753,2]
[314108408,1707985841287,-500.0,0.00035753,14]
[314108409,1707985841295,-500.0,0.00035753,14]
[314108410,1707985841305,-575.26411866,0.00035753,14]
[314108411,1707985841314,-500.0,0.00035753,14]
[314108412,1707985841325,-500.0,0.00035753,14]
[314108413,1707985841334,-500.0,0.00035753,14]
[314108414,1707985841343,-500.0,0.00035753,14]
[314108415,1707985841353,-500.0,0.00035753,14]
[314108416,1707985841362,-500.0,0.00035753,14]
[314108417,1707985841371,-500.0,0.00035753,14]
[314108418,1707985841380,-790.71,0.00035753,14]
[314108419,1707985841390,-220.52929558,0.00035753,14]
[314108420,1707985841398,-500.0,0.00035753,14]
[314108421,1707985841408,-500.0,0.00035753,14]
[314108422,1707985841417,-1842.8,0.00035753,7]
[314108423,1707985841426,-595.82440495,0.00035753,14]
[314108424,1707985841435,-500.0,0.00035753,14]
[314108425,1707985841444,-500.0,0.00035753,14]
[314108426,1707985841453,-569.62856393,0.00035753,14]
[314108427,1707985841463,-500.0,0.00035753,14]
[314108428,1707985841473,-170.56767808,0.00035753,2]
[314108429,1707985841483,-500.0,0.00035753,14]
[314108430,1707985841492,-505.07339131,0.00035753,14]
[314108431,1707985841501,-500.0,0.00035753,14]
[314108432,1707985841510,-500.0,0.00035753,14]
[314108433,1707985841519,-197.26846087,0.00035753,14]
[314108434,1707985841528,-547.99777768,0.00035753,14]
[314108435,1707985841537,-500.0,0.00035753,14]
[314108436,1707985841546,-617.85,0.00035753,14]
[314108437,1707985841555,-500.0,0.00035753,14]
[314108438,1707985841565,-500.0,0.00035753,14]
[314108439,1707985841575,-500.0,0.00035753,14]
[314108441,1707985841650,-500.0,0.00035753,2]
[314108442,1707985841660,-648.0,0.00035753,14]
[314108443,1707985841669,-975.55,0.00035753,14]
[314108444,1707985841678,-582.46,0.00035753,14]
[314108445,1707985841687,-220.0,0.00035753,2]
[314108446,1707985841697,-500.0,0.00035753,14]
[314108448,1707985841706,-500.0,0.00035753,14]
[314108449,1707985841718,-499.89077347,0.00035753,14]
[314108450,1707985841727,-500.0,0.00035753,14]
[314108451,1707985841737,-500.0,0.00035753,14]
[314108452,1707985841746,-535.29,0.00035753,14]
[314108453,1707985841755,-500.0,0.00035753,7]
[314108454,1707985841765,-500.0,0.00035753,14]
[314108455,1707985841774,-500.0,0.00035753,2]
[314108456,1707985841784,-500.0,0.00035753,14]
[314108457,1707985841795,-500.0,0.00035753,14]
[314108458,1707985841805,-500.0,0.00035753,14]
[314108459,1707985841815,-500.0,0.00035753,14]
[314108460,1707985841824,-500.0,0.00035753,14]
[314108461,1707985841833,-696.51,0.00035753,14]
[314108462,1707985841842,-500.0,0.00035753,14]
[314108463,1707985841851,-500.0,0.00035753,14]
[314108464,1707985841860,-500.0,0.00035753,14]
[314108465,1707985841869,-502.57460696,0.00035753,7]
[314108466,1707985841879,-500.0,0.00035753,14]
[314108467,1707985841888,-500.0,0.00035753,14]
[314108468,1707985841897,-500.0,0.00035753,14]
[314108469,1707985841906,-500.0,0.00035753,14]
[314108470,1707985841916,-500.0,0.00035753,14]
[314108471,1707985841925,-529.90121524,0.00035753,14]
[314108472,1707985841934,-500.0,0.00035753,14]
[314108473,1707985841943,-632.37272132,0.00035753,14]
[314108474,1707985841953,-340.40376875,0.00035753,14]
[314108475,1707985841962,-2124.2,0.00035753,14]
[314108476,1707985841970,-508.26930953,0.00035753,14]
[314108477,1707985841979,-500.0,0.00035753,14]
[314108478,1707985841988,-500.0,0.00035753,14]
[314108479,1707985841997,-502.53956151,0.00035753,14]
[314108480,1707985842006,-887.33,0.00035753,14]
[314108481,1707985842015,-500.0,0.00035753,14]
[314108482,1707985842024,-1005.42571822,0.00035753,2]
[314108483,1707985842033,-1319.1,0.00035753,14]
[314108484,1707985842043,-500.0,0.00035753,14]
[314108485,1707985842052,-574.41874669,0.00035753,14]
[314108486,1707985842061,-500.0,0.00035753,14]
[314108487,1707985842071,-2004.12,0.00035753,14]
[314108488,1707985842080,-500.0,0.00035753,14]
[314108489,1707985842089,-500.0,0.00035753,14]
[314108490,1707985842098,-14185.1,0.00035753,14]
[314108491,1707985842107,-518.53236624,0.00035753,2]
[314108492,1707985842117,-500.0,0.00035753,14]
[314108493,1707985842126,-4720.06,0.00035753,14]
[314108494,1707985842135,-500.0,0.00035753,14]
[314108495,1707985842144,-1376.62,0.00035753,14]
[314108496,1707985842153,-500.0,0.00035753,14]
[314108497,1707985842162,-500.0,0.00035753,14]
[314108498,1707985842171,-14187.68,0.00035753,14]
[314108499,1707985842180,-1610.73,0.00035753,14]
[314108500,1707985842189,-500.0,0.00035753,14]
[314108501,1707985842198,-1315.27,0.00035753,14]
[314108502,1707985842207,-500.92600228,0.00035753,14]
[314108503,1707985842216,-771.35,0.00035753,14]
[314108504,1707985842225,-500.0,0.00035753,14]
[314108505,1707985842235,-7834.33,0.00035753,14]
[314108506,1707985842244,-5465.69162404,0.00035753,14]
[314108525,1707985845087,-1628.65837596,0.00035753,14]
[314108527,1707985845098,-500.0,0.00035753,14]
[314108529,1707985845107,-65.34529134,0.00035753,14]
[314108563,1707985846538,-434.65470866,0.00035753,14]
[314108565,1707985846547,-3023.51,0.00035753,14]
[314108567,1707985846557,-500.0,0.00035753,14]
[314108569,1707985846565,-2177.45,0.00035753,14]
[314108571,1707985846576,-2453.96,0.00035753,14]
[314108573,1707985846586,-13831.67,0.00035753,14]
[314108575,1707985846596,-500.0,0.00035753,14]
[314108577,1707985846604,-333.58851983,0.00035753,14]
[314108712,1707987043744,-513.48239033,0.0003,2]
[314108714,1707987043754,-5.12760967,0.00032711,5]
[314108716,1707987043766,-1076.04452815,0.00032711,5]
[314108718,1707987043775,-434.21547185,0.00032711,5]
[314108720,1707987043787,-596.31897244,0.00032711,5]
[314108723,1707987043798,-132.43913308,0.00032711,5]
[314108725,1707987043807,-422.05591467,0.00032732,5]
[314109038,1707987046781,-148.89030829,0.00032732,5]
[314109040,1707987046791,-264.94943262,0.00032743,5]
[314109042,1707987046800,-214.553351,0.00032982,2]
[314109044,1707987046809,-186.0,0.00033,2]
[314109046,1707987046818,-322.10060159,0.00033653,2]
[314109048,1707987046827,-224.0,0.00033683,2]
[314109050,1707987046836,-504.83376052,0.00033683,2]
[314109274,1707988231854,-351.5980794,0.00031583,2]
[314109276,1707988231863,-5000.0,0.00032764,7]
[314109278,1707988231873,-311.10213589,0.00033,2]
[314109279,1707988231882,-24900.0,0.00033885,2]
[314109280,1707988231890,-167.633153,0.00034077,2]
[314109281,1707988231900,-155.0,0.00034616,2]
[314109282,1707988231909,-200.0,0.000349,4]
[314109283,1707988231918,-500.46779474,0.00035,7]
[314109284,1707988231926,-155.0522226,0.00035,2]
[314109285,1707988231936,-200.230317,0.00035,2]
[314109286,1707988231946,-173.1536496,0.00035,2]
[314109287,1707988231955,-1500.01,0.00035006,2]
[314109288,1707988231964,-1499.99,0.0003502,2]
[314109289,1707988231973,-1500.0,0.00035043,2]
[314109290,1707988231982,-2967.02371004,0.00035516,2]
[314109291,1707988231991,-161.74103775,0.00035516,2]
[314109292,1707988232000,-311.50590201,0.00035615,15]
[314109293,1707988232009,-1000.0,0.00035615,35]
[314109294,1707988232018,-500.0,0.00035615,15]
[314109295,1707988232027,-502.88772756,0.00035615,15]
[314109296,1707988232036,-500.0,0.00035616,7]
[314109297,1707988232045,-500.0,0.00035616,14]
[314109298,1707988232054,-500.0,0.00035616,7]
[314109299,1707988232063,-500.0,0.00035616,14]
[314109300,1707988232072,-500.0,0.00035616,7]
[314109301,1707988232080,-500.0,0.00035616,14]
[314109302,1707988232089,-178.61972058,0.00035616,14]
[314109303,1707988232098,-500.0,0.00035616,14]
[314109304,1707988232108,-500.0,0.00035616,14]
[314109305,1707988232117,-500.0,0.00035616,14]
[314109306,1707988232126,-500.0,0.00035616,14]
[314109307,1707988232135,-578.55450017,0.00035616,14]
[314109308,1707988232144,-500.0,0.00035616,14]
[314109309,1707988232154,-500.0,0.00035616,14]
[314109310,1707988232163,-520.94030356,0.00035616,14]
[314109311,1707988232172,-500.0,0.00035616,14]
[314109312,1707988232181,-500.0,0.00035616,14]
[314109313,1707988232189,-500.0,0.00035616,14]
[314109314,1707988232198,-500.0,0.00035616,14]
[314109315,1707988232206,-500.0,0.00035616,2]
[314109316,1707988232215,-543.30693965,0.00035616,14]
[314109317,1707988232224,-500.0,0.00035616,14]
[314109318,1707988232233,-500.0,0.00035616,14]
[314109319,1707988232241,-156.84959731,0.00035616,14]
[314109320,1707988232250,-500.0,0.00035616,14]
[314109321,1707988232259,-241.4578223,0.00035616,14]
[314109322,1707988232268,-500.0,0.00035616,14]
[314109323,1707988232276,-500.0,0.00035616,14]
[314109324,1707988232285,-500.0,0.00035616,14]
[314109325,1707988232294,-506.91722832,0.00035616,14]
[314109326,1707988232303,-500.0,0.00035616,14]
[314109327,1707988232311,-500.0,0.00035616,14]
[314109328,1707988232321,-500.0,0.00035616,14]
[314109329,1707988232331,-500.0,0.00035616,14]
[314109330,1707988232343,-285.50953037,0.00035616,14]
[314109331,1707988232352,-510.46755575,0.00035616,14]
[314109332,1707988232362,-500.0,0.00035616,14]
[314109333,1707988232371,-500.0,0.00035616,14]
[314109334,1707988232381,-500.0,0.00035616,14]
[314109335,1707988232390,-513.66558092,0.00035616,14]
[314109336,1707988232399,-500.0,0.00035616,14]
[314109337,1707988232408,-500.0,0.00035616,2]
[314109338,1707988232418,-500.0,0.00035616,14]
[314109339,1707988232427,-195.99445327,0.00035616,14]
[314109340,1707988232439,-500.0,0.00035616,14]
[314109341,1707988232448,-517.39206153,0.00035616,14]
[314109342,1707988232457,-343.63079016,0.00035616,14]
[314109343,1707988232466,-500.0,0.00035616,2]
[314109344,1707988232475,-500.0,0.00035616,14]
[314109345,1707988232484,-500.0,0.00035616,14]
[314109346,1707988232493,-500.0,0.00035616,14]
[314109347,1707988232502,-184.23353177,0.00035616,14]
[314109348,1707988232512,-514.93351127,0.00035616,14]
[314109349,1707988232522,-500.0,0.00035616,14]
[314109350,1707988232531,-500.0,0.00035616,14]
[314109351,1707988232540,-500.0,0.00035616,14]
[314109352,1707988232550,-500.0,0.00035616,14]
[314109353,1707988232559,-500.0,0.00035616,14]
[314109354,1707988232569,-500.0,0.00035616,14]
[314109355,1707988232578,-516.94149683,0.00035616,14]
[314109356,1707988232587,-500.0,0.00035616,14]
[314109357,1707988232597,-500.0,0.00035616,14]
[314109358,1707988232605,-500.0,0.00035616,14]
[314109359,1707988232614,-508.84083037,0.00035616,14]
[314109360,1707988232628,-109.00916963,0.00035616,14]
[314109361,1707988232638,-383.66100647,0.00035616,14]